[Event "*** SCC Grand Prix: Titled Tuesday Blitz"]
[Site "Chess.com"]
[Date "2020.10.06"]
[Round "3"]
[White "arminmusovic"]
[Black "severomorskij"]
[Result "0-1"]
[WhiteElo "2524"]
[BlackElo "2758"]
[TimeControl "180+1"]
[EndTime "10:29:23 PDT"]
[Termination "severomorskij won by resignation"]

1. a3 {[%clk 0:03:00.9]} 1... e5 {[%clk 0:02:59.5]} 2. Nc3 {[%clk 0:02:59.8]}
2... d5 {[%clk 0:02:58.9]} 3. d4 {[%clk 0:03:00.3]} 3... e4 {[%clk 0:02:47.4]}
4. Bf4 {[%clk 0:02:59.4]} 4... f5 {[%clk 0:02:46.5]} 5. Nb5 {[%clk 0:02:53.9]}
5... Na6 {[%clk 0:02:45.4]} 6. c4 {[%clk 0:02:54.3]} 6... Nf6 {[%clk 0:02:37.9]}
7. e3 {[%clk 0:02:51]} 7... c6 {[%clk 0:02:36.7]} 8. Nc3 {[%clk 0:02:51.1]} 8...
Bd6 {[%clk 0:02:36]} 9. Nh3 {[%clk 0:02:51.5]} 9... O-O {[%clk 0:02:35.1]} 10.
Be2 {[%clk 0:02:45.7]} 10... Nc7 {[%clk 0:02:34.1]} 11. O-O {[%clk 0:02:39.5]}
11... Ne6 {[%clk 0:02:31.6]} 12. Be5 {[%clk 0:02:31.4]} 12... Kh8 {[%clk
0:02:24.1]} 13. cxd5 {[%clk 0:02:29.9]} 13... Nxd5 {[%clk 0:02:22.8]} 14. Nxd5
{[%clk 0:02:27]} 14... cxd5 {[%clk 0:02:23.7]} 15. Qb3 {[%clk 0:02:11.7]} 15...
Bxe5 {[%clk 0:02:18.9]} 16. dxe5 {[%clk 0:02:12.6]} 16... d4 {[%clk 0:02:18.7]}
17. Bc4 {[%clk 0:02:04.3]} 17... Nc5 {[%clk 0:02:04.7]} 18. Qb4 {[%clk 0:01:54]}
18... b6 {[%clk 0:02:04.1]} 19. exd4 {[%clk 0:01:50.6]} 19... Qxd4 {[%clk
0:02:05]} 20. Ng5 {[%clk 0:01:50.9]} 20... h6 {[%clk 0:01:52.8]} 21. Nf7+ {[%clk
0:01:42.4]} 21... Rxf7 {[%clk 0:01:50.1]} 22. Bxf7 {[%clk 0:01:43.3]} 22... Qxe5
{[%clk 0:01:49.6]} 23. f4 {[%clk 0:01:35.5]} 23... Qf6 {[%clk 0:01:35.6]} 24.
Bd5 {[%clk 0:01:33.9]} 24... Rb8 {[%clk 0:01:32.8]} 25. Qc3 {[%clk 0:01:20]}
25... Qxc3 {[%clk 0:01:29.1]} 26. bxc3 {[%clk 0:01:20.9]} 26... Bd7 {[%clk
0:01:25.5]} 27. Rfd1 {[%clk 0:01:15.8]} 27... g6 {[%clk 0:01:21.4]} 28. Kf2
{[%clk 0:01:12.2]} 28... Kg7 {[%clk 0:01:21.4]} 29. Ke3 {[%clk 0:01:12.3]} 29...
Kf6 {[%clk 0:01:21.7]} 30. Rd4 {[%clk 0:01:05]} 30... Rc8 {[%clk 0:01:19.6]} 31.
Rad1 {[%clk 0:00:53.6]} 31... Be8 {[%clk 0:01:08.1]} 32. c4 {[%clk 0:00:34]}
32... Nb3 {[%clk 0:01:06.6]} 33. g3 {[%clk 0:00:24]} 33... Nxd4 {[%clk
0:01:06.4]} 34. Kxd4 {[%clk 0:00:24.2]} 34... Rc5 {[%clk 0:01:04.8]} 35. Rb1
{[%clk 0:00:20.1]} 35... Ra5 {[%clk 0:01:01.6]} 36. Rb3 {[%clk 0:00:19.8]} 36...
Bd7 {[%clk 0:00:56.6]} 37. Rc3 {[%clk 0:00:20.1]} 37... Be6 {[%clk 0:00:55.9]}
38. Rb3 {[%clk 0:00:19.3]} 38... g5 {[%clk 0:00:54.1]} 39. Rc3 {[%clk
0:00:18.7]} 39... gxf4 {[%clk 0:00:49.8]} 40. gxf4 {[%clk 0:00:18.7]} 40... Rc5
{[%clk 0:00:49.9]} 41. Bxe6 {[%clk 0:00:18.7]} 41... Kxe6 {[%clk 0:00:49.1]} 42.
Rh3 {[%clk 0:00:19.6]} 42... Ra5 {[%clk 0:00:42.5]} 43. Rxh6+ {[%clk 0:00:19.8]}
43... Kf7 {[%clk 0:00:43]} 44. Rh7+ {[%clk 0:00:20.3]} 44... Kg6 {[%clk
0:00:43]} 45. Rh3 {[%clk 0:00:21.2]} 45... Rc5 {[%clk 0:00:39.3]} 46. Rb3 {[%clk
0:00:20]} 46... Rc7 {[%clk 0:00:37.2]} 47. Rg3+ {[%clk 0:00:19.3]} 47... Kf6
{[%clk 0:00:36.4]} 48. Rh3 {[%clk 0:00:18.6]} 48... Rd7+ {[%clk 0:00:36.4]} 49.
Kc3 {[%clk 0:00:19.1]} 49... Kg6 {[%clk 0:00:30.9]} 50. Rg3+ {[%clk 0:00:18.9]}
50... Kh5 {[%clk 0:00:26]} 51. a4 {[%clk 0:00:18.9]} 51... a5 {[%clk 0:00:22.7]}
52. Rg5+ {[%clk 0:00:18.6]} 52... Kh4 {[%clk 0:00:23]} 53. Rxf5 {[%clk
0:00:19.5]} 53... Kg4 {[%clk 0:00:23.1]} 54. Rf6 {[%clk 0:00:19.9]} 54... e3
{[%clk 0:00:21.2]} 55. Rxb6 {[%clk 0:00:17.7]} 55... e2 {[%clk 0:00:19.8]} 56.
Re6 {[%clk 0:00:17.4]} 56... Kf3 {[%clk 0:00:19.8]} 57. c5 {[%clk 0:00:15.6]}
57... Rd1 {[%clk 0:00:17.5]} 58. Kc4 {[%clk 0:00:12.9]} 58... e1=Q {[%clk
0:00:16.2]} 59. Rxe1 {[%clk 0:00:13]} 59... Rxe1 {[%clk 0:00:17.1]} 60. f5
{[%clk 0:00:12.2]} 60... Ke4 {[%clk 0:00:16.1]} 61. f6 {[%clk 0:00:12.5]} 61...
Rf1 {[%clk 0:00:15]} 62. c6 {[%clk 0:00:09.9]} 62... Rxf6 {[%clk 0:00:12.7]} 63.
Kc5 {[%clk 0:00:10.4]} 63... Ke5 {[%clk 0:00:07.2]} 64. c7 {[%clk 0:00:10.3]}
64... Rf8 {[%clk 0:00:06.9]} 65. Kc6 {[%clk 0:00:09.5]} 65... Ke6 {[%clk
0:00:07]} 66. h4 {[%clk 0:00:09.3]} 66... Rh8 {[%clk 0:00:06.5]} 67. h5 {[%clk
0:00:09]} 67... Rg8 {[%clk 0:00:06.5]} 68. h6 {[%clk 0:00:08.9]} 68... Rh8
{[%clk 0:00:06.6]} 69. h7 {[%clk 0:00:08.9]} 69... Rf8 {[%clk 0:00:06.5]} 70.
Kb6 {[%clk 0:00:06.1]} 70... Kd7 {[%clk 0:00:06.1]} 71. Kb7 {[%clk 0:00:04.4]}
71... Rh8 {[%clk 0:00:05.5]} 72. c8=Q+ {[%clk 0:00:02.6]} 72... Rxc8 {[%clk
0:00:05.2]} 73. Kb6 {[%clk 0:00:03.5]} 73... Rh8 {[%clk 0:00:04.7]} 74. Kxa5
{[%clk 0:00:04.4]} 74... Kc6 {[%clk 0:00:05]} 75. Kb4 {[%clk 0:00:04.6]} 75...
Rxh7 {[%clk 0:00:05.2]} 76. a5 {[%clk 0:00:05.5]} 76... Rh4+ {[%clk 0:00:05.4]}
77. Kb3 {[%clk 0:00:06.4]} 77... Kb5 {[%clk 0:00:05.9]} 78. a6 {[%clk
0:00:07.1]} 78... Rh3+ {[%clk 0:00:06.6]} 79. Kc2 {[%clk 0:00:07.1]} 79... Kxa6
{[%clk 0:00:07.5]} 80. Kd2 {[%clk 0:00:07.9]} 80... Kb5 {[%clk 0:00:07.9]} 81.
Ke2 {[%clk 0:00:08.8]} 81... Kc4 {[%clk 0:00:08.4]} 82. Kf2 {[%clk 0:00:09.7]}
82... Rd3 {[%clk 0:00:08.8]} 83. Kg2 {[%clk 0:00:10.6]} 83... Kd4 {[%clk
0:00:09.5]} 84. Kf2 {[%clk 0:00:11.5]} 84... Ke4 {[%clk 0:00:10.3]} 85. Kg2
{[%clk 0:00:12.1]} 85... Rf3 {[%clk 0:00:10.5]} 86. Kh2 {[%clk 0:00:12.2]} 86...
Kf4 {[%clk 0:00:10.8]} 87. Kg2 {[%clk 0:00:13.1]} 87... Kg4 {[%clk 0:00:11.1]}
88. Kh2 {[%clk 0:00:14]} 88... Rf2+ {[%clk 0:00:11.3]} 89. Kh1 {[%clk
0:00:14.9]} 89... Kg3 {[%clk 0:00:11.6]} 90. Kg1 {[%clk 0:00:15.4]} 90... Rf3
{[%clk 0:00:12.1]} 0-1

[Event "*** SCC Grand Prix: Titled Tuesday Blitz"]
[Site "Chess.com"]
[Date "2020.10.06"]
[Round "3"]
[White "Carnivoras"]
[Black "MrTattaglia"]
[Result "0-1"]
[WhiteElo "2671"]
[BlackElo "2879"]
[TimeControl "180+1"]
[EndTime "10:29:26 PDT"]
[Termination "MrTattaglia won on time"]

1. d4 {[%clk 0:02:47.1]} 1... Nf6 {[%clk 0:02:26.2]} 2. c4 {[%clk 0:02:42.8]}
2... e6 {[%clk 0:02:24.8]} 3. g3 {[%clk 0:02:42]} 3... c6 {[%clk 0:02:22.4]} 4.
Bg2 {[%clk 0:02:35.7]} 4... d5 {[%clk 0:02:23.3]} 5. Nd2 {[%clk 0:02:35.3]} 5...
b6 {[%clk 0:02:21.1]} 6. Ngf3 {[%clk 0:02:22.7]} 6... Be7 {[%clk 0:02:21.4]} 7.
O-O {[%clk 0:02:21.6]} 7... O-O {[%clk 0:02:21.8]} 8. Qc2 {[%clk 0:02:22.2]}
8... Ba6 {[%clk 0:02:21.3]} 9. b3 {[%clk 0:02:18.3]} 9... Nbd7 {[%clk
0:02:20.4]} 10. Bb2 {[%clk 0:02:18]} 10... Rc8 {[%clk 0:02:20.8]} 11. e4 {[%clk
0:02:18.1]} 11... c5 {[%clk 0:02:20.8]} 12. exd5 {[%clk 0:01:56.1]} 12... exd5
{[%clk 0:02:20]} 13. Rfe1 {[%clk 0:01:56.6]} 13... Re8 {[%clk 0:02:18.6]} 14.
Rad1 {[%clk 0:01:51.6]} 14... Bf8 {[%clk 0:02:10.6]} 15. Qb1 {[%clk 0:01:43.2]}
15... Rxe1+ {[%clk 0:02:07.8]} 16. Rxe1 {[%clk 0:01:41.6]} 16... dxc4 {[%clk
0:02:08]} 17. Nxc4 {[%clk 0:01:32]} 17... Bxc4 {[%clk 0:02:02.8]} 18. bxc4
{[%clk 0:01:32.6]} 18... cxd4 {[%clk 0:02:03.1]} 19. Nxd4 {[%clk 0:01:33.1]}
19... Rxc4 {[%clk 0:02:03.2]} 20. Nc6 {[%clk 0:00:39.7]} 20... Qc7 {[%clk
0:02:02.4]} 21. Ne7+ {[%clk 0:00:39.8]} 21... Bxe7 {[%clk 0:02:01.9]} 22. Rxe7
{[%clk 0:00:40.7]} 22... Qc5 {[%clk 0:01:47.5]} 23. Qe1 {[%clk 0:00:40.1]} 23...
Rc2 {[%clk 0:01:42.6]} 24. Bxf6 {[%clk 0:00:28.4]} 24... Nxf6 {[%clk 0:01:41.9]}
25. Rxa7 {[%clk 0:00:28.2]} 25... g6 {[%clk 0:01:34.2]} 26. Bf1 {[%clk 0:00:26]}
26... Ne4 {[%clk 0:01:30.4]} 27. Qe3 {[%clk 0:00:19]} 27... Qxe3 {[%clk
0:00:23.5]} 28. fxe3 {[%clk 0:00:19.9]} 28... Nd6 {[%clk 0:00:24.2]} 29. Ra6
{[%clk 0:00:18.8]} 29... Rb2 {[%clk 0:00:23.6]} 30. a4 {[%clk 0:00:18.1]} 30...
Nf5 {[%clk 0:00:23.6]} 31. e4 {[%clk 0:00:18.4]} 31... Ne3 {[%clk 0:00:23.4]}
32. Bb5 {[%clk 0:00:16.6]} 32... Rg2+ {[%clk 0:00:21.1]} 33. Kh1 {[%clk
0:00:17]} 33... Rd2 {[%clk 0:00:18.4]} 34. Kg1 {[%clk 0:00:15.7]} 34... Rg2+
{[%clk 0:00:17.5]} 35. Kh1 {[%clk 0:00:15.9]} 35... Ra2 {[%clk 0:00:17.9]} 36.
Kg1 {[%clk 0:00:15.9]} 36... Ng4 {[%clk 0:00:18.4]} 37. Rxb6 {[%clk 0:00:15.2]}
37... Nxh2 {[%clk 0:00:18.5]} 38. Rb8+ {[%clk 0:00:14]} 38... Kg7 {[%clk
0:00:18.3]} 39. Rb7 {[%clk 0:00:14.4]} 39... Nf3+ {[%clk 0:00:17.9]} 40. Kf1
{[%clk 0:00:14.7]} 40... Ne5 {[%clk 0:00:04.6]} 41. Ra7 {[%clk 0:00:11.8]} 41...
Kf6 {[%clk 0:00:03.9]} 42. a5 {[%clk 0:00:11.9]} 42... Kg5 {[%clk 0:00:03.8]}
43. Be2 {[%clk 0:00:10.9]} 43... Ra1+ {[%clk 0:00:02.8]} 44. Kf2 {[%clk
0:00:10.7]} 44... Ra2 {[%clk 0:00:03.2]} 45. a6 {[%clk 0:00:10.5]} 45... f6
{[%clk 0:00:01.8]} 46. Rxh7 {[%clk 0:00:09.2]} 46... Ra3 {[%clk 0:00:01.8]} 47.
Rc7 {[%clk 0:00:08.6]} 47... Ra4 {[%clk 0:00:01.6]} 48. Rb7 {[%clk 0:00:08.1]}
48... Nc6 {[%clk 0:00:01.4]} 49. Rb6 {[%clk 0:00:07.9]} 49... Nd4 {[%clk
0:00:01.6]} 50. Rb2 {[%clk 0:00:05.9]} 50... Ra3 {[%clk 0:00:01.7]} 51. Rd2
{[%clk 0:00:05.6]} 51... Ne6 {[%clk 0:00:01.5]} 52. Rd5+ {[%clk 0:00:05.2]}
52... Kh6 {[%clk 0:00:02.1]} 53. Rd6 {[%clk 0:00:05.6]} 53... Nc5 {[%clk
0:00:02.5]} 54. Rd5 {[%clk 0:00:03.1]} 54... Nxe4+ {[%clk 0:00:02.5]} 55. Ke1
{[%clk 0:00:03.6]} 55... Nxg3 {[%clk 0:00:02.5]} 56. Bd3 {[%clk 0:00:03.1]}
56... Ra1+ {[%clk 0:00:02.4]} 57. Kd2 {[%clk 0:00:03.2]} 57... Ra3 {[%clk
0:00:03]} 58. Rd7 {[%clk 0:00:03.2]} 58... f5 {[%clk 0:00:03.2]} 59. a7 {[%clk
0:00:03.6]} 59... Kg5 {[%clk 0:00:02.8]} 60. Bb5 {[%clk 0:00:03.7]} 60... Ne4+
{[%clk 0:00:02.8]} 61. Ke1 {[%clk 0:00:02.6]} 61... Nc5 {[%clk 0:00:02.8]} 62.
Rc7 {[%clk 0:00:02.3]} 62... Ne6 {[%clk 0:00:02.6]} 63. Re7 {[%clk 0:00:02.5]}
63... Nd4 {[%clk 0:00:02.7]} 64. Bc4 {[%clk 0:00:03]} 64... Nc6 {[%clk
0:00:02.6]} 65. Rc7 {[%clk 0:00:02.8]} 65... Nxa7 {[%clk 0:00:02.1]} 66. Rg7
{[%clk 0:00:03.3]} 66... Nc6 {[%clk 0:00:01.6]} 67. Bf7 {[%clk 0:00:03.4]} 67...
Ne5 {[%clk 0:00:01.9]} 68. Be8 {[%clk 0:00:03.6]} 68... Kf6 {[%clk 0:00:02.2]}
69. Rg8 {[%clk 0:00:03.6]} 69... Ra1+ {[%clk 0:00:02.6]} 70. Kf2 {[%clk
0:00:03.5]} 70... Ra2+ {[%clk 0:00:03.5]} 71. Kg1 {[%clk 0:00:03.5]} 71... Ra7
{[%clk 0:00:03]} 72. Rf8+ {[%clk 0:00:03.5]} 72... Ke7 {[%clk 0:00:02.8]} 73.
Rh8 {[%clk 0:00:03.8]} 73... Kf6 {[%clk 0:00:03.2]} 74. Rf8+ {[%clk 0:00:03.7]}
74... Kg5 {[%clk 0:00:03.7]} 75. Rg8 {[%clk 0:00:03.7]} 75... Re7 {[%clk
0:00:02.7]} 76. Bb5 {[%clk 0:00:03.5]} 76... Kf4 {[%clk 0:00:02.6]} 77. Kf2
{[%clk 0:00:03.2]} 77... g5 {[%clk 0:00:02.9]} 78. Be2 {[%clk 0:00:02.7]} 78...
g4 {[%clk 0:00:03.2]} 79. Rf8 {[%clk 0:00:02.6]} 79... Nc6 {[%clk 0:00:03.3]}
80. Bd3 {[%clk 0:00:02.2]} 80... Nd4 {[%clk 0:00:03.7]} 81. Rf6 {[%clk
0:00:01.5]} 81... Re3 {[%clk 0:00:02.9]} 0-1

[Event "*** SCC Grand Prix: Titled Tuesday Blitz"]
[Site "Chess.com"]
[Date "2020.10.06"]
[Round "3"]
[White "W_Amadeus"]
[Black "Itk04"]
[Result "0-1"]
[WhiteElo "2717"]
[BlackElo "2466"]
[TimeControl "180+1"]
[EndTime "10:29:32 PDT"]
[Termination "Itk04 won by resignation"]

1. d4 {[%clk 0:03:00.9]} 1... Nf6 {[%clk 0:02:58.3]} 2. Nf3 {[%clk 0:02:58.2]}
2... e6 {[%clk 0:02:57]} 3. Bf4 {[%clk 0:02:57.5]} 3... d5 {[%clk 0:02:56]} 4.
e3 {[%clk 0:02:56.8]} 4... c5 {[%clk 0:02:55.5]} 5. c3 {[%clk 0:02:56.5]} 5...
Bd6 {[%clk 0:02:56]} 6. Nbd2 {[%clk 0:02:53]} 6... Qc7 {[%clk 0:02:52.4]} 7.
Bxd6 {[%clk 0:02:39.3]} 7... Qxd6 {[%clk 0:02:52.2]} 8. Ne5 {[%clk 0:02:39.7]}
8... O-O {[%clk 0:02:44.4]} 9. Bd3 {[%clk 0:02:37.7]} 9... b6 {[%clk 0:02:31.1]}
10. h4 {[%clk 0:02:07.5]} 10... Ba6 {[%clk 0:02:17]} 11. Bxa6 {[%clk 0:02:05.6]}
11... Nxa6 {[%clk 0:02:17.9]} 12. h5 {[%clk 0:02:06]} 12... h6 {[%clk
0:02:16.7]} 13. g4 {[%clk 0:01:40.2]} 13... b5 {[%clk 0:01:44.3]} 14. a3 {[%clk
0:01:17.9]} 14... Nd7 {[%clk 0:01:33.5]} 15. Ndf3 {[%clk 0:00:59]} 15... Nxe5
{[%clk 0:01:11.9]} 16. Nxe5 {[%clk 0:00:58.5]} 16... b4 {[%clk 0:01:10.6]} 17.
axb4 {[%clk 0:00:54.5]} 17... cxb4 {[%clk 0:01:10.4]} 18. Qd3 {[%clk 0:00:38.5]}
18... Nb8 {[%clk 0:00:50.2]} 19. g5 {[%clk 0:00:31.2]} 19... bxc3 {[%clk
0:00:19]} 20. bxc3 {[%clk 0:00:28.1]} 20... Nd7 {[%clk 0:00:17.8]} 21. f4 {[%clk
0:00:23.3]} 21... Nxe5 {[%clk 0:00:12.5]} 22. fxe5 {[%clk 0:00:22.4]} 22... Qb6
{[%clk 0:00:12.4]} 23. gxh6 {[%clk 0:00:17.3]} 23... Qb2 {[%clk 0:00:12.5]} 24.
h7+ {[%clk 0:00:10.6]} 24... Kh8 {[%clk 0:00:12.2]} 25. O-O {[%clk 0:00:11.2]}
25... Rac8 {[%clk 0:00:07.7]} 26. Rfb1 {[%clk 0:00:02.3]} 26... Qxc3 {[%clk
0:00:07.6]} 27. Qxc3 {[%clk 0:00:02.6]} 27... Rxc3 {[%clk 0:00:08.5]} 28. Rxa7
{[%clk 0:00:02.2]} 28... Rxe3 {[%clk 0:00:07.5]} 29. Rbb7 {[%clk 0:00:02.6]}
29... Rf3 {[%clk 0:00:07.6]} 30. Kg2 {[%clk 0:00:02.4]} 30... Rf5 {[%clk
0:00:07.6]} 31. Kg3 {[%clk 0:00:02.4]} 31... Kxh7 {[%clk 0:00:07.9]} 32. Kg4
{[%clk 0:00:02.9]} 32... Kh6 {[%clk 0:00:08.1]} 33. Re7 {[%clk 0:00:02.9]} 33...
Rg5+ {[%clk 0:00:08.2]} 34. Kf4 {[%clk 0:00:02.9]} 34... Rf5+ {[%clk 0:00:02.9]}
35. Kg4 {[%clk 0:00:03.1]} 35... Rf1 {[%clk 0:00:03.1]} 36. Kg3 {[%clk 0:00:03]}
36... Kxh5 {[%clk 0:00:02.2]} 37. Ra2 {[%clk 0:00:02.4]} 37... Kg6 {[%clk
0:00:01.7]} 38. Rg2 {[%clk 0:00:02.3]} 38... Rf5 {[%clk 0:00:02.2]} 39. Kg4
{[%clk 0:00:02.3]} 39... Rg5+ {[%clk 0:00:02.1]} 40. Kf3 {[%clk 0:00:02.7]}
40... Rxg2 {[%clk 0:00:03]} 41. Kxg2 {[%clk 0:00:03.6]} 41... Kf5 {[%clk
0:00:02.3]} 42. Kf3 {[%clk 0:00:04.1]} 42... Kg6 {[%clk 0:00:02.6]} 43. Kg4
{[%clk 0:00:04]} 43... Rc8 {[%clk 0:00:03.2]} 44. Kf3 {[%clk 0:00:04.5]} 44...
Rc3+ {[%clk 0:00:02.8]} 45. Ke2 {[%clk 0:00:04.7]} 45... Rg3 {[%clk 0:00:01.7]}
46. Kd2 {[%clk 0:00:02.3]} 46... Rh3 {[%clk 0:00:02.6]} 47. Ke2 {[%clk
0:00:02.7]} 47... Rh4 {[%clk 0:00:03.5]} 48. Ke3 {[%clk 0:00:02.8]} 48... Rh5
{[%clk 0:00:03.5]} 49. Kd3 {[%clk 0:00:02]} 49... Rh3+ {[%clk 0:00:04.4]} 50.
Kd2 {[%clk 0:00:02.5]} 50... Kf5 {[%clk 0:00:04]} 51. Rxf7+ {[%clk 0:00:02.1]}
51... Ke4 {[%clk 0:00:04.9]} 52. Rxg7 {[%clk 0:00:01.9]} 52... Kxd4 {[%clk
0:00:05.3]} 53. Rg5 {[%clk 0:00:02.5]} 53... Rh2+ {[%clk 0:00:05]} 54. Ke1
{[%clk 0:00:02.8]} 54... Rh4 {[%clk 0:00:05.2]} 55. Kd2 {[%clk 0:00:02.9]} 55...
Re4 {[%clk 0:00:05.5]} 56. Rh5 {[%clk 0:00:01.4]} 56... Rxe5 {[%clk 0:00:05.9]}
57. Rh6 {[%clk 0:00:02.1]} 57... Re4 {[%clk 0:00:06.1]} 58. Rh8 {[%clk 0:00:02]}
58... Rg4 {[%clk 0:00:05.3]} 59. Ra8 {[%clk 0:00:01.9]} 59... Rg2+ {[%clk
0:00:05.3]} 60. Ke1 {[%clk 0:00:02.5]} 60... e5 {[%clk 0:00:05.2]} 61. Ra4+
{[%clk 0:00:01.8]} 61... Ke3 {[%clk 0:00:05.4]} 62. Ra3+ {[%clk 0:00:02.3]}
62... Ke4 {[%clk 0:00:06]} 63. Rb3 {[%clk 0:00:01.5]} 63... d4 {[%clk
0:00:06.1]} 64. Rh3 {[%clk 0:00:02.2]} 64... Rb2 {[%clk 0:00:04.3]} 65. Kd1
{[%clk 0:00:01.9]} 65... Kd5 {[%clk 0:00:04.3]} 66. Rh8 {[%clk 0:00:01.5]} 66...
Rg2 {[%clk 0:00:03.8]} 67. Rh5 {[%clk 0:00:01.8]} 67... Rg3 {[%clk 0:00:02.3]}
68. Kd2 {[%clk 0:00:01.2]} 68... Ra3 {[%clk 0:00:02.7]} 69. Rg5 {[%clk
0:00:01.4]} 69... Ke4 {[%clk 0:00:02.8]} 70. Rg4+ {[%clk 0:00:01.3]} 70... Kf5
{[%clk 0:00:03.4]} 71. Rh4 {[%clk 0:00:01.5]} 71... e4 {[%clk 0:00:03.4]} 72.
Rh8 {[%clk 0:00:01.9]} 72... Ra2+ {[%clk 0:00:03.3]} 73. Ke1 {[%clk 0:00:02.4]}
73... Rg2 {[%clk 0:00:04]} 74. Rf8+ {[%clk 0:00:02.2]} 74... Kg4 {[%clk
0:00:04.4]} 75. Rg8+ {[%clk 0:00:01.9]} 75... Kf3 {[%clk 0:00:05]} 76. Ra8
{[%clk 0:00:01.6]} 76... Rg1+ {[%clk 0:00:04.3]} 77. Kd2 {[%clk 0:00:01.8]}
77... e3+ {[%clk 0:00:05.2]} 78. Kc2 {[%clk 0:00:02.3]} 78... e2 {[%clk
0:00:05.6]} 79. Rf8+ {[%clk 0:00:02.2]} 79... Kg2 {[%clk 0:00:05.2]} 80. Rg8+
{[%clk 0:00:02.3]} 80... Kf2 {[%clk 0:00:04.6]} 81. Rf8+ {[%clk 0:00:02.5]}
81... Ke1 {[%clk 0:00:04.4]} 82. Re8 {[%clk 0:00:01.8]} 82... Rg3 {[%clk
0:00:02.4]} 83. Re7 {[%clk 0:00:01.9]} 83... Re3 {[%clk 0:00:02.8]} 84. Rxe3
{[%clk 0:00:01.5]} 84... dxe3 {[%clk 0:00:03.7]} 85. Kd3 {[%clk 0:00:02.3]}
85... Kf2 {[%clk 0:00:03.9]} 0-1